fUST/lending_fUST_20260109
["ID","MTS","AMOUNT","RATE_DAILY","PERIOD"]
[401094842,1767922240139,-478.75725327,0.00023575,2]
[401094843,1767922240148,-174.61919141,0.00023575,2]
[401094844,1767922240158,-250.0,0.00023575,2]
[401094845,1767922240167,-250.0,0.00023575,2]
[401094846,1767922240176,-1500.0,0.00023575,2]
[401094847,1767922240185,-250.0,0.00023575,2]
[401094848,1767922240196,-250.0,0.00023575,2]
[401094849,1767922240205,-1500.0,0.00023575,2]
[401094851,1767922240214,-250.0,0.00023575,2]
[401094853,1767922240223,-250.0,0.00023575,2]
[401094854,1767922240232,-1500.0,0.00023575,2]
[401094855,1767922240241,-250.0,0.00023575,2]
[401094856,1767922240250,-250.0,0.00023575,2]
[401094857,1767922240259,-1500.0,0.00023575,2]
[401094858,1767922240267,-151.0,0.00023575,2]
[401094859,1767922240277,-250.0,0.00023575,2]
[401094860,1767922240287,-250.0,0.00023575,2]
[401094861,1767922240296,-1500.0,0.00023575,2]
[401094862,1767922240305,-151.0,0.00023575,2]
[401094863,1767922240316,-250.0,0.00023575,2]
[401094865,1767922240326,-250.0,0.00023575,2]
[401094867,1767922240335,-1500.0,0.00023575,2]
[401094869,1767922240344,-250.0,0.00023575,2]
[401094871,1767922240353,-151.0,0.00023575,2]
[401094873,1767922240362,-250.0,0.00023575,2]
[401094875,1767922240371,-1297.78653774,0.00023575,2]
[401094877,1767922240380,-151.0,0.00023575,2]
[401094879,1767922240389,-250.0,0.00023575,2]
[401094881,1767922240399,-250.0,0.00023575,2]
[401094883,1767922240408,-151.0,0.00023575,2]
[401094885,1767922240417,-250.0,0.00023575,2]
[401094887,1767922240427,-251.51662048,0.00023575,2]
[401094889,1767922240436,-151.0,0.00023575,2]
[401094890,1767922240446,-250.0,0.00023575,2]
[401094892,1767922240455,-250.0,0.00023575,2]
[401094894,1767922240464,-250.0,0.00023575,2]
[401094896,1767922240474,-151.0,0.00023575,2]
[401094898,1767922240483,-250.0,0.00023575,2]
[401094900,1767922240492,-250.0,0.00023575,2]
[401094902,1767922240501,-250.0,0.00023575,2]
[401094904,1767922240510,-311.38298493,0.00023575,2]
[401094906,1767922240530,-151.0,0.00023575,2]
[401094908,1767922240539,-250.0,0.00023575,2]
[401094910,1767922240550,-250.0,0.00023575,2]
[401094912,1767922240562,-151.0,0.00023575,2]
[401094914,1767922240572,-151.0,0.00023575,2]
[401094916,1767922240582,-250.0,0.00023575,2]
[401094918,1767922240591,-250.0,0.00023575,2]
[401094920,1767922240600,-151.0,0.00023575,2]
[401094922,1767922240609,-151.15345632,0.00023575,2]
[401094924,1767922240618,-250.0,0.00023575,2]
[401094926,1767922240627,-255.89504653,0.00023575,2]
[401094928,1767922240636,-151.0,0.00023575,2]
[401094930,1767922240645,-250.0,0.00023575,2]
[401094931,1767922240655,-151.0,0.00023575,2]
[401094933,1767922240664,-250.0,0.00023575,2]
[401094935,1767922240673,-151.0,0.00023575,2]
[401094937,1767922240682,-250.0,0.00023575,2]
[401094939,1767922240691,-207.16925945,0.00023575,2]
[401094941,1767922240700,-250.0,0.00023575,2]
[401094943,1767922240709,-250.0,0.00023575,2]
[401094945,1767922240719,-151.0,0.00023575,2]
[401094947,1767922240728,-250.0,0.00023575,2]
[401094949,1767922240737,-151.0,0.00023575,2]
[401094951,1767922240746,-30000.0,0.00023575,2]
[401094953,1767922240755,-250.0,0.00023575,2]
[401094955,1767922240764,-151.0,0.00023575,2]
[401094957,1767922240773,-250.0,0.00023575,2]
[401094959,1767922240786,-151.0,0.00023575,2]
[401094961,1767922240796,-250.0,0.00023575,2]
[401094963,1767922240805,-151.0,0.00023575,2]
[401094965,1767922240815,-250.0,0.00023575,2]
[401094967,1767922240824,-151.0,0.00023575,2]
[401094969,1767922240833,-251.4518332,0.00023575,2]
[401094971,1767922240841,-151.0,0.00023575,2]
[401094973,1767922240851,-151.0,0.00023575,2]
[401094975,1767922240860,-151.0,0.00023575,2]
[401094977,1767922240869,-500.0,0.00023575,2]
[401094978,1767922240878,-151.0,0.00023575,2]
[401094980,1767922240887,-500.0,0.00023575,2]
[401094982,1767922240896,-151.0,0.00023575,2]
[401094984,1767922240905,-500.0,0.00023575,2]
[401094986,1767922240914,-151.0,0.00023575,2]
[401094988,1767922240923,-2312.83697232,0.00023575,2]
[401094990,1767922240933,-500.0,0.00023575,2]
[401094992,1767922240942,-151.0,0.00023575,2]
[401094994,1767922240951,-613.39880693,0.00023575,2]
[401094996,1767922240961,-151.0,0.00023575,2]
[401094998,1767922240971,-151.0,0.00023575,2]
[401095000,1767922240981,-151.0,0.00023575,2]
[401095002,1767922240990,-151.0,0.00023575,2]
[401095004,1767922240999,-151.0,0.00023575,2]
[401095006,1767922241008,-151.0,0.00023575,2]
[401095008,1767922241018,-151.2837254,0.00023575,2]
[401095010,1767922241028,-151.0,0.000236,6]
[401095012,1767922241037,-1000.0,0.00023619,10]
[401095014,1767922241047,-244.0,0.00023619,10]
[401095016,1767922241059,-2105.41764886,0.0002363,2]
[401095018,1767922241069,-2183.31810187,0.00023685,2]
[401095020,1767922241083,-553.53,0.000237,2]
[401095022,1767922241095,-2264.10087164,0.0002374,2]
[401095024,1767922241105,-2347.87260389,0.00023795,2]
[401095026,1767922241114,-1010.0,0.000238,2]
[401095028,1767922241124,-1010.0,0.000238,4]
[401095030,1767922241133,-1010.0,0.000238,5]
[401095032,1767922241142,-2434.74389024,0.0002385,2]
[401095034,1767922241151,-518.09,0.000239,7]
[401095036,1767922241160,-2524.82941417,0.00023905,2]
[401095038,1767922241169,-2618.2481025,0.0002396,2]
[401095040,1767922241178,-2223.47,0.00024,3]
[401095042,1767922241187,-801.97,0.00024,3]
[401095044,1767922241197,-10005.58522487,0.00024,2]
[401095046,1767922241207,-155.0,0.00024,11]
[401095048,1767922241223,-558.36393728,0.00024015,2]
[401095049,1767922241232,-244.8,0.00024034,2]
[401095051,1767922241240,-3367.0,0.00024038,2]
[401095053,1767922241250,-1683.0,0.00024054,2]
[401095055,1767922241260,-513.2194775,0.00024077,2]
[401095057,1767922241269,-2050.82503211,0.00024077,2]
[401095059,1767922241278,-496.47127164,0.00024123,2]
[401095061,1767922241287,-151.0,0.00024123,2]
[401095063,1767922241296,-31110.0,0.00024123,2]
[401095065,1767922241307,-2398.4119403,0.00024123,2]
[401095067,1767922241317,-115838.43900268,0.00024142,2]
[401095076,1767922241385,-1023.59729684,0.00017944,2]
[401095343,1767922244349,-1085.44972965,0.00017944,2]
[401095349,1767922244392,-324.60526093,0.00017944,2]
[401095351,1767922244402,-2433.65228742,0.00018315,2]
[401095353,1767922244411,-2433.65228742,0.00018441,2]
[401095355,1767922244420,-2433.65228742,0.00018841,2]
[401095357,1767922244429,-2433.65228742,0.00019055,2]
[401095359,1767922244438,-2433.65228742,0.0001934,2]
[401095361,1767922244450,-2433.65228742,0.00019565,2]
[401095363,1767922244459,-2433.65228742,0.00019872,2]
[401095365,1767922244467,-2433.65228742,0.00020113,2]
[401095367,1767922244477,-2433.65228742,0.00020545,2]
[401095369,1767922244486,-2433.65228742,0.00020596,2]
[401095371,1767922244495,-2433.65228742,0.00020881,2]
[401095373,1767922244505,-2433.65228742,0.00021355,2]
[401095375,1767922244514,-2433.65228742,0.00021577,2]
[401095377,1767922244523,-2433.65228742,0.00021852,2]
[401095379,1767922244533,-2433.65228742,0.00022002,2]
[401095381,1767922244542,-2433.65228742,0.00022194,2]
[401095383,1767922244552,-24.35962788,0.00022526,2]
[401095385,1767922244565,-388.51668446,0.00022526,2]
[401095407,1767922291185,184.31643449,0.00030136,120]
[401095408,1767922303870,1942.5,0.00030137,120]
[401095409,1767922306938,1191.4,0.0003013,120]
[401095410,1767922310240,277.43240208,0.00030136,120]
[401095414,1767922334805,500.0,0.00030136,120]
[401095415,1767922335055,280.09574295,0.00030136,120]
[401095416,1767922344676,303.67570734,0.00030136,120]
[401095417,1767922345181,247.59845279,0.00030136,120]
[401095418,1767922354481,223.60765786,0.00030136,120]
[401095419,1767922373999,500.0,0.00030136,120]
[401095420,1767922374259,500.0,0.00030136,120]
[401095421,1767922374617,339.30222377,0.00030136,120]
[401095422,1767922378783,238.12758799,0.00030136,120]
[401095423,1767922392464,274.20763061,0.00030136,120]
[401095424,1767922393411,434.14545738,0.00030136,120]
[401095425,1767922396393,429.60614676,0.00030136,120]
[401095426,1767922402606,314.23388402,0.00030136,120]
[401095429,1767922426604,151.87230368,0.00030136,120]
[401095430,1767922442438,587.7849167,0.0003013,120]
[401095432,1767922585207,218.608387,0.00030136,120]
[401095433,1767922779069,2930.17778459,0.0003,120]
[401095435,1767922845883,3369.9348034,0.0003,120]
[401095436,1767922908261,-400.0,9.822e-05,2]
[401095438,1767923030532,157.72,8.685e-05,2]
[401095439,1767923145457,500.0,0.0003013,120]
[401095440,1767923146702,500.0,0.0003013,120]
[401095441,1767923148100,500.0,0.0003013,120]
[401095442,1767923149349,500.0,0.0003013,120]
[401095443,1767923150847,500.0,0.0003013,120]
[401095444,1767923152127,500.0,0.0003013,120]
[401095445,1767923153437,500.0,0.0003013,120]
[401095446,1767923154684,500.0,0.0003013,120]
[401095447,1767923155924,220.8644458,0.0003013,120]
[401095448,1767923402022,400.0,0.00030136,120]
[401095449,1767923402607,400.0,0.00030136,120]
[401095450,1767923403233,154.69596477,0.00030136,120]
[401095497,1767923432587,-280.43166784,9.282e-05,2]
[401095498,1767923432597,-337.70666007,9.282e-05,2]
[401095499,1767923432609,-212.29333993,9.282e-05,2]
[401095500,1767923432618,-330.90936805,0.00011282,2]
[401095501,1767923432628,-660.9849031,0.00011475,2]
[401095503,1767923432638,-1849.246062,0.00012456,2]
[401095505,1767923432647,-300.0,0.00012575,2]
[401095507,1767923432657,-6262.35438856,0.00012576,2]
[401095508,1767923432702,-451.39396205,0.00012576,2]
[401095509,1767923432715,-738.31744499,0.00012576,2]
[401095510,1767923432725,-40.16931079,0.00012827,2]
[401095574,1767923438646,-164.2,0.00010469,2]
[401095576,1767923438658,-184.72,0.0001105,2]
[401095578,1767923438668,-205.25,0.00011632,2]
[401095580,1767923438678,-259.83068921,0.00012827,2]
[401095582,1767923438688,-300.0,0.00012827,2]
[401095584,1767923438698,-300.0,0.00012827,2]
[401095585,1767923438708,-300.0,0.00012827,2]
[401095587,1767923438718,-300.0,0.00012827,2]
[401095589,1767923438729,-300.0,0.00012827,2]
[401095590,1767923438739,-300.0,0.00012827,2]
[401095592,1767923438749,-21.25108461,0.00012827,2]
[401095595,1767923438761,-278.74891539,0.00012827,2]
[401095596,1767923438770,-300.0,0.00012827,2]
[401095598,1767923438780,-300.0,0.00012827,2]
[401095600,1767923438790,-300.0,0.00012827,2]
[401095602,1767923438799,-300.0,0.00012827,2]
[401095604,1767923438809,-300.0,0.00012827,2]
[401095606,1767923438819,-300.0,0.00012827,2]
[401095608,1767923438829,-300.0,0.00012827,2]
[401095609,1767923438839,-11177.94502284,0.00012827,2]
[401095611,1767923438851,-917.63079369,0.00012827,2]
[401095613,1767923438862,-500.0,0.00013273,2]
[401095615,1767923438872,-58.12317374,0.00013282,2]
[401095617,1767923438884,-323.26389452,0.00013282,2]
[401095618,1767923438894,-300.0,0.00013673,2]
[401095620,1767923438903,-500.0,0.00013698,2]
[401095621,1767923438913,-1000.0,0.00013699,2]
[401095622,1767923438927,-2888.77703918,0.00013699,2]
[401095623,1767923438939,-2274.63732402,0.00013699,2]
[401095624,1767923438949,-500.0,0.00013699,2]
[401095625,1767923438959,-500.0,0.00013699,2]
[401095626,1767923438970,-150.30892656,0.00013699,2]
[401095627,1767923438980,-500.0,0.00013699,2]
[401095628,1767923438990,-500.0,0.00013699,2]
[401095629,1767923438999,-500.0,0.00013699,2]
[401095630,1767923439010,-500.0,0.00013699,2]
[401095631,1767923439020,-1000.0,0.00013821,2]
[401095632,1767923439029,-600.0,0.00013972,2]
[401095633,1767923439039,-600.0,0.00014221,2]
[401095634,1767923439049,-500.0,0.00014246,2]
[401095635,1767923439060,-501.1749439,0.00014247,2]
[401095636,1767923439071,-1001.1067294,0.00014247,2]
[401095637,1767923439080,-317.47516212,0.00014247,2]
[401095638,1767923439090,-1000.0,0.00014247,2]
[401095639,1767923439100,-1000.0,0.00014247,2]
[401095640,1767923439110,-1000.0,0.00014247,2]
[401095641,1767923439120,-1500.0,0.00014368,2]
[401095642,1767923439130,-500.0,0.00014666,2]
[401095643,1767923439139,-294.52924968,0.00014666,2]
[401095644,1767923439150,-320.63612999,0.00014666,2]
[401095645,1767923439160,-500.0,0.00014666,2]
[401095646,1767923439169,-2.18530352,0.00014666,2]
[401095647,1767923439182,-497.81469648,0.00014666,2]
[401095648,1767923439196,-289.88580736,0.00014666,2]
[401095649,1767923439207,-500.0,0.00014666,2]
[401095650,1767923439217,-500.0,0.00014666,2]
[401095651,1767923439227,-500.0,0.00014666,2]
[401095652,1767923439237,-500.0,0.00014666,2]
[401095653,1767923439247,-500.0,0.00014666,2]
[401095654,1767923439259,-500.0,0.00014666,2]
[401095655,1767923439273,-500.0,0.00014666,2]
[401095656,1767923439283,-500.0,0.00014666,2]
[401095657,1767923439292,-4551.01472389,0.00014667,2]
[401095658,1767923439304,-11265.84171531,0.00014667,2]
[401095946,1767923444866,-6011.6099528,0.00014667,2]
[401095947,1767923444879,-7261.60094564,0.00014667,2]
[401095977,1767923518126,662.07,0.00030136,120]
[401095978,1767923518368,662.07,0.00030136,120]
[401095979,1767923518643,662.07,0.00030136,120]
[401095980,1767923518886,662.07,0.00030136,120]
[401095981,1767923519117,662.07,0.00030136,120]
[401095982,1767923519374,662.07,0.00030136,120]
[401095983,1767923519618,662.07,0.00030136,120]
[401095984,1767923519855,662.07,0.00030136,120]
[401095985,1767923520102,662.07,0.00030136,120]
[401095986,1767923520367,662.07,0.00030136,120]
[401095987,1767923520601,662.07,0.00030136,120]
[401095988,1767923520845,662.07,0.00030136,120]
[401095989,1767923521105,662.07,0.00030136,120]
[401095990,1767923521351,662.07,0.00030136,120]
[401095991,1767923521596,662.07,0.00030136,120]
[401095992,1767923521838,662.07,0.00030136,120]
[401095993,1767923522088,662.07,0.00030136,120]
[401095994,1767923522334,662.07,0.00030136,120]
[401095995,1767923522574,662.07,0.00030136,120]
[401095997,1767923522913,662.07,0.00030136,120]
[401095998,1767923523091,662.07,0.00030136,120]
[401095999,1767923523343,662.07,0.00030136,120]
[401096000,1767923523585,662.07,0.00030136,120]
[401096001,1767923523840,662.25303285,0.00030136,120]
[401096002,1767923742583,2791.9,0.0003013,120]
[401096005,1767924068986,239.0,0.00030136,120]
[401096006,1767924093563,155.7,0.00030137,120]
[401096007,1767924104874,1010.0,0.0003,120]
[401096062,1767924637834,-500.0,0.00013273,2]
[401096064,1767924637843,-500.0,0.00013273,2]
[401096066,1767924637852,-500.0,0.00013273,2]
[401096068,1767924637862,-306.70968072,0.00013273,2]
[401096070,1767924637871,-608.0,0.00013273,2]
[401096071,1767924637880,-6976.76117501,0.00013573,2]
[401096073,1767924637889,-421.09842304,0.0001362,2]
[401096074,1767924637898,-341.67283394,0.0001362,2]
[401096076,1767924637907,-500.85659204,0.0001362,2]
[401096077,1767924637916,-300.0,0.0001362,2]
[401096078,1767924637925,-26191.50181979,0.00013621,2]
[401096079,1767924637939,-27234.36970335,0.00013621,2]
[401096080,1767924637948,-300.0,0.00013673,2]
[401096081,1767924637956,-500.0,0.00013698,2]
[401096082,1767924637965,-1001.83283,0.00013699,2]
[401096083,1767924637974,-500.0,0.00013699,2]
[401096084,1767924637983,-500.0,0.00013699,2]
[401096085,1767924637992,-500.0,0.00013699,2]
[401096086,1767924638000,-500.0,0.00013699,2]
[401096087,1767924638009,-500.0,0.0001372,2]
[401096088,1767924638019,-500.0,0.0001372,2]
[401096089,1767924638028,-503.61078349,0.0001372,2]
[401096090,1767924638038,-500.0,0.0001372,2]
[401096091,1767924638047,-505.77195174,0.0001372,2]
[401096092,1767924638056,-500.0,0.0001372,2]
[401096093,1767924638065,-501.77271772,0.0001372,2]
[401096094,1767924638074,-500.0,0.0001372,2]
[401096095,1767924638083,-500.0,0.0001372,2]
[401096096,1767924638093,-500.0,0.0001372,2]
[401096097,1767924638102,-500.0,0.0001372,2]
[401096098,1767924638111,-500.0,0.0001372,2]
[401096099,1767924638120,-500.0,0.0001372,2]
[401096100,1767924638129,-1010.0,0.000138,2]
[401096101,1767924638138,-1000.0,0.00013821,2]
[401096102,1767924638147,-1000.0,0.00013821,2]
[401096103,1767924638157,-1000.0,0.00013821,2]
[401096104,1767924638166,-527.53936173,0.00013993,2]
[401096105,1767924638176,-300.0,0.00013994,2]
[401096106,1767924638185,-300.0,0.00013994,2]
[401096107,1767924638194,-300.0,0.00013994,2]
[401096108,1767924638203,-300.0,0.00013994,2]
[401096109,1767924638214,-300.0,0.00013994,2]
[401096110,1767924638224,-300.0,0.00013994,2]
[401096111,1767924638233,-300.0,0.00013994,2]
[401096112,1767924638242,-300.0,0.00013994,2]
[401096113,1767924638252,-300.0,0.00013994,2]
[401096114,1767924638262,-300.0,0.00013994,2]
[401096115,1767924638271,-300.0,0.00013994,2]
[401096116,1767924638280,-300.0,0.00013994,2]
[401096117,1767924638289,-300.0,0.00013994,2]
[401096118,1767924638298,-300.0,0.00013994,2]
[401096119,1767924638307,-300.0,0.00013994,2]
[401096120,1767924638316,-600.0,0.00013994,2]
[401096121,1767924638325,-500.0,0.00014094,2]
[401096122,1767924638335,-11487.8011541,0.00014095,2]
[401096123,1767924638344,-666.4250319,0.00014095,2]
[401096124,1767924638353,-2077.7719488,0.00014095,2]
[401096125,1767924638362,-1163.6663153,0.00014095,2]
[401096126,1767924638371,-609.5866724,0.00014095,2]
[401096127,1767924638381,-151.76758838,0.00014095,2]
[401096128,1767924638390,-153.89715084,0.00014095,2]
[401096129,1767924638400,-690.0,0.00014095,2]
[401096130,1767924638409,-504.4978833,0.00014095,2]
[401096131,1767924638419,-600.0,0.00014221,2]
[401096132,1767924638428,-152.38573524,0.00014232,2]
[401096133,1767924638438,-690.0,0.00014232,2]
[401096134,1767924638447,-155.25966066,0.00014232,2]
[401096135,1767924638458,-1000.0,0.00014247,2]
[401096136,1767924638467,-1000.0,0.00014247,2]
[401096137,1767924638477,-1000.0,0.00014247,2]
[401096138,1767924638487,-1000.0,0.00014247,2]
[401096139,1767924638497,-1089.70279484,0.00014368,2]
[401096140,1767924638507,-1500.0,0.00014368,2]
[401096141,1767924638516,-1500.0,0.00014368,2]
[401096142,1767924638526,-154.38056856,0.00014369,2]
[401096143,1767924638536,-690.0,0.00014369,2]
[401096144,1767924638545,-150.49775496,0.00014369,2]
[401096145,1767924638555,-2464.62470655,0.00014423,2]
[401096146,1767924638565,-151.51502948,0.00014506,2]
[401096147,1767924638575,-150.61037759,0.00014506,2]
[401096148,1767924638584,-160.26712516,0.00014506,2]
[401096149,1767924638594,-152.30400026,0.00014506,2]
[401096150,1767924638604,-690.0,0.00014506,2]
[401096151,1767924638614,-151.29071853,0.00014506,2]
[401096152,1767924638625,-152.06034196,0.00014506,2]
[401096153,1767924638638,-156.98949532,0.00014643,2]
[401096154,1767924638648,-690.0,0.00014643,2]
[401096155,1767924638657,-165.74771224,0.00014643,2]
[401096156,1767924638668,-150.44130278,0.00014658,2]
[401096157,1767924638679,-500.0,0.00014665,2]
[401096158,1767924638688,-500.0,0.00014666,2]
[401096159,1767924638699,-500.0,0.00014666,2]
[401096160,1767924638709,-578.53715482,0.00014666,2]
[401096161,1767924638719,-151.0,0.000147,2]
[401096162,1767924638729,-900.0,0.00014768,2]
[401096163,1767924638738,-690.0,0.0001478,2]
[401096164,1767924638747,-170.9785477,0.0001478,2]
[401096165,1767924638758,-1500.0,0.00014795,2]
[401096166,1767924638767,-1500.0,0.00014795,2]
[401096167,1767924638776,-1500.0,0.00014795,2]
[401096168,1767924638785,-1500.0,0.00014795,2]
[401096169,1767924638795,-520.29670604,0.00014916,2]
[401096170,1767924638804,-2000.0,0.00014916,2]
[401096171,1767924638814,-690.0,0.00014917,2]
[401096172,1767924638824,-420.0,0.00014927,2]
[401096173,1767924638833,-729.65385317,0.00014938,2]
[401096174,1767924638843,-729.65385317,0.00014938,2]
[401096175,1767924638852,-729.65385317,0.00014938,2]
[401096176,1767924638862,-729.65385317,0.00014938,2]
[401096177,1767924638874,-729.65385317,0.00014938,2]
[401096178,1767924638883,-729.65385317,0.00014938,2]
[401096179,1767924638893,-729.65385317,0.00014938,2]
[401096180,1767924638902,-295.13641274,0.00014938,2]
[401096181,1767924638912,-729.65385317,0.00014938,2]
[401096182,1767924638921,-729.65385317,0.00014938,2]
[401096183,1767924638930,-729.65385317,0.00014938,2]
[401096184,1767924638939,-729.65385317,0.00014938,2]
[401096185,1767924638949,-729.65385317,0.00014938,2]
[401096186,1767924638958,-729.65385317,0.00014938,2]
[401096187,1767924638969,-729.65385317,0.00014938,2]
[401096188,1767924638978,-729.65385317,0.00014938,2]
[401096189,1767924638987,-729.65385317,0.00014938,2]
[401096190,1767924638996,-729.65385317,0.00014938,2]
[401096191,1767924639006,-729.65385317,0.00014938,2]
[401096192,1767924639016,-729.65385317,0.00014938,2]
[401096193,1767924639026,-729.65385317,0.00014938,2]
[401096194,1767924639035,-690.0,0.00015054,2]
[401096195,1767924639045,-171.043074,0.00015068,2]
[401096196,1767924639055,-800.0,0.00015068,2]
[401096197,1767924639064,-151.25281158,0.00015069,2]
[401096198,1767924639074,-151.38401694,0.00015069,2]
[401096199,1767924639083,-690.0,0.00015191,2]
[401096200,1767924639092,-361.91742325,0.00015273,2]
[401096201,1767924639101,-1200.0,0.00015316,2]
[401096202,1767924639111,-690.0,0.00015328,2]
[401096203,1767924639121,-2000.0,0.00015342,2]
[401096204,1767924639131,-2000.0,0.00015342,2]
[401096205,1767924639140,-232.05281859,0.00015342,2]
[401096206,1767924639150,-2000.0,0.00015342,2]
[401096207,1767924639160,-720.0,0.00015393,2]
[401096208,1767924639169,-2500.0,0.00015464,2]
[401096209,1767924639179,-690.0,0.00015465,2]
[401096210,1767924639189,-690.0,0.00015602,2]
[401096211,1767924639199,-151.0,0.000157,2]
[401096212,1767924639209,-690.0,0.00015739,2]
[401096213,1767924639218,-500.0,0.00015864,2]
[401096214,1767924639228,-1500.0,0.00015864,2]
[401096215,1767924639237,-690.0,0.00015876,2]
[401096216,1767924639247,-2500.0,0.0001589,2]
[401096217,1767924639256,-2500.0,0.0001589,2]
[401096218,1767924639266,-2500.0,0.0001589,2]
[401096220,1767924639275,-2077.7719488,0.00015948,2]
[401096222,1767924639284,-11487.8011541,0.00016004,2]
[401096224,1767924639293,-3000.0,0.00016012,2]
[401096226,1767924639302,-690.0,0.00016013,2]
[401096227,1767924639311,-690.0,0.0001615,2]
[401096228,1767924639320,-500.0,0.00016164,2]
[401096229,1767924639330,-1772.96996154,0.00016207,2]
[401096231,1767924639339,-7091.87984615,0.00016207,2]
[401096232,1767924639348,-342.50556075,0.00016281,2]
[401096233,1767924639357,-690.0,0.00016287,2]
[401096234,1767924639367,-6976.76117496,0.00016334,2]
[401096235,1767924639376,-587.0,0.00016359,2]
[401096236,1767924639385,-1800.0,0.00016412,2]
[401096237,1767924639395,-690.0,0.00016424,2]
[401096238,1767924639404,-500.17974527,0.00016438,2]
[401096239,1767924639413,-164.14409414,0.00016438,2]
[401096240,1767924639423,-3000.0,0.00016438,2]
[401096242,1767924639432,-3000.0,0.00016438,2]
[401096243,1767924639442,-3000.0,0.00016438,2]
[401096244,1767924639452,-183.93,0.0001644,2]
[401096245,1767924639462,-200.0,0.00016473,2]
[401096246,1767924639472,-609.5866724,0.00016546,2]
[401096247,1767924639481,-3500.0,0.0001656,2]
[401096248,1767924639490,-690.0,0.00016561,2]
[401096249,1767924639499,-1163.6663153,0.00016595,2]
[401096250,1767924639508,-151.0,0.000166,2]
[401096251,1767924639518,-666.4250319,0.00016609,2]
[401096252,1767924639528,-690.0,0.00016698,2]
[401096253,1767924639537,-690.0,0.00016835,2]
[401096254,1767924639546,-1000.0,0.000169,2]
[401096255,1767924639555,-864.0,0.00016933,2]
[401096257,1767924639564,-2100.0,0.0001696,2]
[401096259,1767924639573,-690.0,0.00016972,2]
[401096261,1767924639583,-3500.0,0.00016986,2]
[401096263,1767924639592,-3500.0,0.00016986,2]
[401096265,1767924639602,-3500.0,0.00016986,2]
[401096267,1767924639611,-4000.0,0.00017108,2]
[401096269,1767924639620,-690.0,0.00017109,2]
[401096271,1767924639632,-708.58899026,0.00017246,2]
[401096273,1767924639641,-417.12516578,0.00017273,2]
[401096275,1767924639650,-500.0,0.00017397,2]
[401096276,1767924639660,-151.0,0.000175,2]
[401096278,1767924639669,-2400.0,0.00017508,2]
[401096280,1767924639678,-2905.94549633,0.00017534,2]
[401096282,1767924639687,-4000.0,0.00017534,2]
[401096284,1767924639697,-4000.0,0.00017534,2]
[401096285,1767924639705,-547.86079383,0.00017656,2]
[401096287,1767924639715,-2077.7719488,0.00017801,2]
[401096289,1767924639724,-479.96006875,0.00017842,2]
[401096291,1767924639733,-11487.8011541,0.00017913,2]
[401096293,1767924639742,-823.0,0.0001793,2]
[401096295,1767924639751,-500.0,0.00017957,2]
[401096297,1767924639761,-613.77675027,0.00018056,2]
[401096299,1767924639770,-4500.0,0.00018082,2]
[401096301,1767924639779,-2678.7569075,0.00018082,2]
[401096303,1767924639788,-151.0,0.000185,2]
[401096305,1767924639798,-151.0,0.000185,2]
[401096307,1767924639807,-267.55800831,0.00018563,2]
[401096309,1767924639816,-1000.0,0.00018626,2]
[401096311,1767924639825,-5000.0,0.0001863,2]
[401096313,1767924639835,-609.5866724,0.00018998,2]
[401096315,1767924639843,-1163.6663153,0.00019094,2]
[401096317,1767924639852,-666.4250319,0.00019123,2]